[Event "FIDE Women World Blitz 2021"]
[Site "Warsaw"]
[Date "2021.12.30"]
[Round "16.2"]
[White "Koneru, Humpy"]
[Black "Lagno, Kateryna"]
[Result "1-0"]
[ECO "D85"]
[WhiteElo "2586"]
[BlackElo "2550"]
[Annotator "ChessBase"]
[PlyCount "141"]
[EventDate "2021.12.29"]
[EventType "swiss"]
[EventCountry "POL"]
[Tiebreak "Cut1 Buchholz"]
[SourceTitle "playchess.com"]
[Source "ChessBase"]
[SourceQuality "1"]
[TimeControl "180+2"]

1. d4 {[%emt 0:00:01]} Nf6 {[%emt 0:00:01]} 2. c4 {[%emt 0:00:02]} g6 {[%emt 0:
00:01]} 3. Nc3 {[%emt 0:00:01]} d5 {[%emt 0:00:01]} 4. cxd5 {[%emt 0:00:03]}
Nxd5 {[%emt 0:00:02]} 5. e4 {[%emt 0:00:02]} Nxc3 {[%emt 0:00:02]} 6. bxc3 {
[%emt 0:00:02]} Bg7 {[%emt 0:00:01]} 7. Nf3 {[%emt 0:00:03]} c5 {[%emt 0:00:03]
} 8. Bb5+ {[%emt 0:00:03]} Nc6 {[%emt 0:00:02]} 9. O-O {[%emt 0:00:04]} O-O {
[%emt 0:00:03]} 10. Bxc6 {[%emt 0:00:04]} bxc6 {[%emt 0:00:02]} 11. Qc2 {
[%emt 0:00:02]} cxd4 {[%emt 0:00:06]} 12. cxd4 {[%emt 0:00:02]} Bg4 {[%emt 0:
00:03]} 13. Ne5 {[%emt 0:00:04]} Qxd4 {[%emt 0:00:19]} 14. Bb2 {[%emt 0:00:06]}
Qb6 {[%emt 0:00:04]} 15. Rab1 {[%emt 0:00:00]} Bxe5 {[%emt 0:00:21]} 16. Bxe5 {
[%emt 0:00:00]} Qa6 {[%emt 0:00:09]} 17. Qc5 {[%emt 0:00:06]} Qxa2 {[%emt 0:00:
15]} 18. Rb2 {[%emt 0:01:37]} Qa4 {[%emt 0:00:38]} 19. Qxe7 {[%emt 0:00:15]}
Rfe8 {[%emt 0:00:07]} 20. Qf6 {[%emt 0:00:04]} Rxe5 {[%emt 0:00:02]} 21. Qxe5 {
[%emt 0:00:02]} Rd8 {[%emt 0:00:10]} 22. Rb8 {[%emt 0:00:25]} Rxb8 {[%emt 0:00:
26]} 23. Qxb8+ {[%emt 0:00:01]} Kg7 {[%emt 0:00:01]} 24. Qe5+ {[%emt 0:00:02]}
Kf8 {[%emt 0:00:09]} 25. Rb1 {[%emt 0:00:10]} Be6 {[%emt 0:00:02]} 26. Qh8+ {
[%emt 0:00:18]} Ke7 {[%emt 0:00:01]} 27. Rb7+ {[%emt 0:00:03]} Kd6 {[%emt 0:00:
01]} 28. Qb8+ {[%emt 0:00:08]} Kc5 {[%emt 0:00:03]} 29. Qe5+ {[%emt 0:00:05]}
Kc4 {[%emt 0:00:01]} 30. h3 {[%emt 0:00:01]} c5 {[%emt 0:00:17]} 31. Rc7 {
[%emt 0:00:02]} Qd1+ {[%emt 0:00:05]} 32. Kh2 {[%emt 0:00:02]} Qd4 {[%emt 0:00:
01]} 33. Qg3 {[%emt 0:00:02]} a5 {[%emt 0:00:07]} 34. Rb7 {[%emt 0:00:01]} a4 {
[%emt 0:00:02]} 35. Qa3 {[%emt 0:00:01]} Qxe4 {[%emt 0:00:16]} 36. Qxa4+ {
[%emt 0:00:02]} Kd5 {[%emt 0:00:01]} 37. Qa2+ {[%emt 0:00:03]} Ke5 {[%emt 0:00:
01]} 38. Qb2+ {[%emt 0:00:03]} Qd4 {[%emt 0:00:01]} 39. Qe2+ {[%emt 0:00:02]}
Kf6 {[%emt 0:00:01]} 40. Rb1 {[%emt 0:00:03]} c4 {[%emt 0:00:01]} 41. Rd1 {
[%emt 0:00:02]} Qf4+ {[%emt 0:00:02]} 42. Kg1 {[%emt 0:00:02]} h5 {[%emt 0:00:
01]} 43. Qb2+ {[%emt 0:00:01]} Qe5 {[%emt 0:00:01]} 44. Qxe5+ {[%emt 0:00:02]}
Kxe5 {[%emt 0:00:01]} 45. Kf1 {[%emt 0:00:01]} Bd5 {[%emt 0:00:03]} 46. g3 {
[%emt 0:00:02]} Be6 {[%emt 0:00:03]} 47. h4 {[%emt 0:00:02]} Bg4 {[%emt 0:00:
01]} 48. Rd8 {[%emt 0:00:03]} c3 {[%emt 0:00:03]} 49. Ke1 {[%emt 0:00:02]} c2 {
[%emt 0:00:02]} 50. Kd2 {[%emt 0:00:01]} Bf5 {[%emt 0:00:01]} 51. f3 {[%emt 0:
00:02]} Kf6 {[%emt 0:00:04]} 52. Rd5 {[%emt 0:00:02]} Ke6 {[%emt 0:00:00]} 53.
Ra5 {[%emt 0:00:01]} Kf6 {[%emt 0:00:02]} 54. Ra6+ {[%emt 0:00:02]} Ke5 {
[%emt 0:00:00]} 55. Ra4 {[%emt 0:00:01]} Kd5 {[%emt 0:00:02]} 56. g4 {[%emt 0:
00:02]} hxg4 {[%emt 0:00:01]} 57. fxg4 {[%emt 0:00:01]} Be4 {[%emt 0:00:00]}
58. h5 {[%emt 0:00:04]} gxh5 {[%emt 0:00:02]} 59. gxh5 {[%emt 0:00:01]} Bh7 {
[%emt 0:00:01]} 60. Rg4 {[%emt 0:00:02]} Ke6 {[%emt 0:00:01]} 61. Rg7 {[%emt 0:
00:01]} Bf5 {[%emt 0:00:02]} 62. h6 {[%emt 0:00:02]} Kf6 {[%emt 0:00:00]} 63.
Rg8 {[%emt 0:00:02]} Bh7 {[%emt 0:00:01]} 64. Rg7 {[%emt 0:00:02]} Bg6 {
[%emt 0:00:02]} 65. Rg8 {[%emt 0:00:03]} Bh7 {[%emt 0:00:01]} 66. Rg1 {[%emt 0:
00:04]} Bg6 {[%emt 0:00:01]} 67. Rh1 {[%emt 0:00:02]} Bh7 {[%emt 0:00:01]} 68.
Rg1 {[%emt 0:00:03]} Bg6 {[%emt 0:00:00]} 69. Kc1 {[%emt 0:00:01]} Ke7 {
[%emt 0:00:03]} 70. Rxg6 {[%emt 0:00:02]} fxg6 {[%emt 0:00:01]} 71. h7 {
[%emt 0:00:00]} 1-0

[Event "FIDE Women World Blitz 2021"]
[Site "Warsaw"]
[Date "2021.12.30"]
[Round "16.2"]
[White "Sliwicka, Alicja"]
[Black "Jakubowska, Anna"]
[Result "1-0"]
[ECO "B12"]
[WhiteElo "2303"]
[BlackElo "2106"]
[Annotator "NA"]
[PlyCount "77"]
[EventDate "2021.12.29"]
[EventType "swiss"]
[EventCountry "POL"]
[Tiebreak "Cut1 Buchholz"]
[SourceTitle "playchess.com"]
[Source "ChessBase"]
[SourceQuality "1"]
[TimeControl "180+2"]

1. e4 {[%emt 0:00:01]} c6 {[%emt 0:00:01]} 2. d4 {[%emt 0:00:01]} d5 {[%emt 0:
00:01]} 3. e5 {[%emt 0:00:01]} Bf5 {[%emt 0:00:01]} 4. c4 {[%emt 0:00:02]} e6 {
[%emt 0:00:03]} 5. Nc3 {[%emt 0:00:01]} Nd7 {[%emt 0:00:11]} 6. a3 {[%emt 0:00:
01]} h6 {[%emt 0:00:06]} 7. c5 {[%emt 0:00:12]} g5 {[%emt 0:00:21]} 8. Be3 {
[%emt 0:00:06]} Bg7 {[%emt 0:00:08]} 9. Nge2 {[%emt 0:00:06]} Ne7 {[%emt 0:00:
02]} 10. Ng3 {[%emt 0:00:04]} Bg6 {[%emt 0:00:01]} 11. Nh5 {[%emt 0:00:02]}
Bxh5 {[%emt 0:00:10]} 12. Qxh5 {[%emt 0:00:03]} Nf5 {[%emt 0:00:06]} 13. Bd3 {
[%emt 0:00:02]} Ne7 {[%emt 0:00:20]} 14. h4 {[%emt 0:00:04]} gxh4 {[%emt 0:00:
14]} 15. Rxh4 {[%emt 0:00:02]} b6 {[%emt 0:00:17]} 16. b4 {[%emt 0:00:18]} bxc5
{[%emt 0:00:03]} 17. bxc5 {[%emt 0:00:05]} Qa5 {[%emt 0:00:01]} 18. Bd2 {
[%emt 0:00:02]} Qc7 {[%emt 0:00:07]} 19. Rg4 {[%emt 0:00:09]} Bf8 {[%emt 0:00:
09]} 20. Rf4 {[%emt 0:00:03]} O-O-O {[%emt 0:00:03]} 21. Ba6+ {[%emt 0:00:03]}
Kb8 {[%emt 0:00:03]} 22. Rb1+ {[%emt 0:00:04]} Ka8 {[%emt 0:00:01]} 23. Bb7+ {
[%emt 0:00:05]} Kb8 {[%emt 0:00:00]} 24. Bxc6+ {[%emt 0:00:04]} Kc8 {[%emt 0:
00:02]} 25. Bb7+ {[%emt 0:00:18]} Kb8 {[%emt 0:00:01]} 26. Qxf7 {[%emt 0:00:09]
} Nxc5 {[%emt 0:00:35]} 27. dxc5 {[%emt 0:00:13]} Qxe5+ {[%emt 0:00:04]} 28.
Kf1 {[%emt 0:00:02]} Kc7 {[%emt 0:00:26]} 29. Ra4 {[%emt 0:00:02]} Qf5 {
[%emt 0:00:07]} 30. Nb5+ {[%emt 0:00:09]} Kb8 {[%emt 0:00:09]} 31. Bf4+ {
[%emt 0:00:04]} e5 {[%emt 0:00:08]} 32. Qxf5 {[%emt 0:00:05]} Nxf5 {[%emt 0:00:
01]} 33. Bxe5+ {[%emt 0:00:04]} Kxb7 {[%emt 0:00:00]} 34. Bxh8 {[%emt 0:00:06]}
Kc6 35. Nd4+ {[%emt 0:00:07]} Nxd4 {[%emt 0:00:02]} 36. Bxd4 {[%emt 0:00:02]}
Be7 {[%emt 0:00:01]} 37. Ra6+ {[%emt 0:00:02]} Kd7 {[%emt 0:00:02]} 38. Rb7+ {
[%emt 0:00:02]} Kc8 {[%emt 0:00:03]} 39. Rxe7 {[%emt 0:00:02]} 1-0

[Event "FIDE Women World Blitz 2021"]
[Site "Warsaw"]
[Date "2021.12.30"]
[Round "16.3"]
[White "Dzagnidze, Nana"]
[Black "Gunina, Valentina"]
[Result "1-0"]
[ECO "D10"]
[WhiteElo "2524"]
[BlackElo "2480"]
[Annotator "ChessBase"]
[PlyCount "94"]
[EventDate "2021.12.29"]
[EventType "swiss"]
[EventCountry "POL"]
[Tiebreak "Cut1 Buchholz"]
[SourceTitle "playchess.com"]
[Source "ChessBase"]
[SourceQuality "1"]
[TimeControl "180+2"]

1. d4 {[%emt 0:00:02]} d5 {[%emt 0:00:01]} 2. c4 {[%emt 0:00:01]} c6 {[%emt 0:
00:01]} 3. cxd5 {[%emt 0:00:02]} cxd5 {[%emt 0:00:01]} 4. Bf4 {[%emt 0:00:02]}
Nc6 {[%emt 0:00:01]} 5. e3 {[%emt 0:00:01]} Nf6 {[%emt 0:00:01]} 6. Nc3 {
[%emt 0:00:02]} a6 {[%emt 0:00:02]} 7. Be2 {[%emt 0:00:07]} Bf5 {[%emt 0:00:03]
} 8. g4 {[%emt 0:00:03]} Bd7 {[%emt 0:00:07]} 9. f3 {[%emt 0:00:08]} e6 {
[%emt 0:00:03]} 10. Rc1 {[%emt 0:00:10]} Be7 {[%emt 0:00:02]} 11. Bd3 {[%emt 0:
00:08]} O-O {[%emt 0:00:03]} 12. Nge2 {[%emt 0:00:01]} Ne8 {[%emt 0:00:05]} 13.
O-O {[%emt 0:00:06]} Rc8 {[%emt 0:00:13]} 14. Bb1 {[%emt 0:00:21]} b5 {[%emt 0:
00:03]} 15. Qd3 {[%emt 0:00:07]} g6 {[%emt 0:00:01]} 16. Bg3 {[%emt 0:00:53]}
Nd6 {[%emt 0:00:13]} 17. b3 {[%emt 0:00:05]} f5 {[%emt 0:00:07]} 18. Nf4 {
[%emt 0:00:11]} b4 {[%emt 0:00:06]} 19. Na4 {[%emt 0:00:03]} fxg4 {[%emt 0:00:
03]} 20. Nc5 {[%emt 0:00:04]} Qe8 {[%emt 0:01:18]} 21. Ncxe6 {[%emt 0:00:12]}
Bxe6 {[%emt 0:00:02]} 22. Nxe6 {[%emt 0:00:02]} Rxf3 {[%emt 0:00:03]} 23. Rxf3
{[%emt 0:00:13]} gxf3 {[%emt 0:00:01]} 24. Qxa6 {[%emt 0:00:04]} Qd7 {[%emt 0:
00:03]} 25. Nf4 {[%emt 0:00:08]} Ne4 {[%emt 0:00:29]} 26. Bxe4 {[%emt 0:00:24]}
dxe4 {[%emt 0:00:01]} 27. Qc4+ {[%emt 0:00:02]} Kh8 {[%emt 0:00:03]} 28. d5 {
[%emt 0:00:03]} Na7 {[%emt 0:00:15]} 29. Qd4+ {[%emt 0:00:01]} Kg8 {[%emt 0:00:
01]} 30. Rc4 {[%emt 0:00:08]} Nb5 {[%emt 0:00:08]} 31. Qxe4 {[%emt 0:00:01]}
Nc3 {[%emt 0:00:06]} 32. Qe6+ {[%emt 0:00:04]} Qxe6 {[%emt 0:00:01]} 33. Nxe6 {
[%emt 0:00:01]} Ra8 {[%emt 0:00:02]} 34. d6 {[%emt 0:00:04]} Bxd6 {[%emt 0:00:
04]} 35. Bxd6 {[%emt 0:00:02]} Rxa2 {[%emt 0:00:02]} 36. Ng5 {[%emt 0:00:03]}
f2+ {[%emt 0:00:06]} 37. Kg2 {[%emt 0:00:01]} Nd5 {[%emt 0:00:04]} 38. Re4 {
[%emt 0:00:05]} h6 {[%emt 0:00:03]} 39. Nf3 {[%emt 0:00:01]} Kf7 {[%emt 0:00:
04]} 40. Bc5 {[%emt 0:00:02]} Rc2 {[%emt 0:00:03]} 41. Bd4 {[%emt 0:00:00]} g5
{[%emt 0:00:02]} 42. Ne5+ {[%emt 0:00:02]} Ke6 {[%emt 0:00:01]} 43. Nd3+ {
[%emt 0:00:03]} Kd7 {[%emt 0:00:02]} 44. Nxf2 {[%emt 0:00:01]} Ra2 {[%emt 0:00:
05]} 45. Kg3 {[%emt 0:00:03]} h5 {[%emt 0:00:01]} 46. Re5 {[%emt 0:00:01]} h4+
{[%emt 0:00:04]} 47. Kf3 {[%emt 0:00:01]} Nc3 {[%emt 0:00:06]} 1-0

[Event "FIDE Women World Blitz 2021"]
[Site "Warsaw"]
[Date "2021.12.30"]
[Round "16.3"]
[White "Nur-Mukhametova, Alisa"]
[Black "Malicka, Maria"]
[Result "0-1"]
[ECO "A05"]
[WhiteElo "2225"]
[BlackElo "2307"]
[Annotator "NA"]
[PlyCount "120"]
[EventDate "2021.12.29"]
[EventType "swiss"]
[EventCountry "POL"]
[Tiebreak "Cut1 Buchholz"]
[SourceTitle "playchess.com"]
[Source "ChessBase"]
[SourceQuality "1"]
[TimeControl "180+2"]

1. Nf3 {[%emt 0:00:03]} Nf6 {[%emt 0:00:02]} 2. g3 {[%emt 0:00:00]} b5 {
[%emt 0:00:04]} 3. Bg2 {[%emt 0:00:02]} Bb7 {[%emt 0:00:00]} 4. O-O {[%emt 0:
00:01]} e6 {[%emt 0:00:02]} 5. d3 {[%emt 0:00:06]} Be7 {[%emt 0:00:01]} 6. e4 {
[%emt 0:00:01]} c5 {[%emt 0:00:04]} 7. a4 {[%emt 0:00:05]} b4 {[%emt 0:00:09]}
8. Nbd2 {[%emt 0:00:44]} Nc6 {[%emt 0:00:01]} 9. b3 {[%emt 0:00:16]} O-O {
[%emt 0:00:03]} 10. Bb2 {[%emt 0:00:02]} d6 {[%emt 0:00:01]} 11. e5 {[%emt 0:
00:12]} Nxe5 {[%emt 0:00:13]} 12. Nxe5 {[%emt 0:00:03]} Bxg2 {[%emt 0:00:01]}
13. Kxg2 {[%emt 0:00:01]} dxe5 {[%emt 0:00:02]} 14. Qe2 {[%emt 0:01:14]} Qd5+ {
[%emt 0:00:07]} 15. Kg1 {[%emt 0:00:14]} Nd7 {[%emt 0:00:17]} 16. Nc4 {[%emt 0:
00:01]} f6 {[%emt 0:00:08]} 17. Rae1 {[%emt 0:00:01]} Nb6 {[%emt 0:00:11]} 18.
Ne3 {[%emt 0:00:02]} Qc6 {[%emt 0:00:04]} 19. a5 {[%emt 0:00:14]} Nd5 {[%emt 0:
00:01]} 20. Nc4 {[%emt 0:00:02]} Rae8 {[%emt 0:00:18]} 21. h4 {[%emt 0:00:14]}
Bd8 {[%emt 0:00:00]} 22. Ra1 {[%emt 0:00:04]} Bc7 {[%emt 0:00:04]} 23. Rfe1 {
[%emt 0:00:01]} Ne7 {[%emt 0:00:18]} 24. Nd2 {[%emt 0:00:02]} Nf5 {[%emt 0:00:
02]} 25. Ne4 {[%emt 0:00:02]} Nd4 {[%emt 0:00:02]} 26. Bxd4 {[%emt 0:00:01]}
exd4 {[%emt 0:00:00]} 27. Nd2 {[%emt 0:00:04]} f5 {[%emt 0:00:09]} 28. Qf3 {
[%emt 0:00:02]} Qxf3 {[%emt 0:00:03]} 29. Nxf3 {[%emt 0:00:01]} e5 {[%emt 0:00:
01]} 30. Nd2 {[%emt 0:00:01]} Re6 {[%emt 0:00:05]} 31. Kg2 {[%emt 0:00:03]}
Rfe8 {[%emt 0:00:00]} 32. f3 {[%emt 0:00:01]} h6 {[%emt 0:00:04]} 33. Re2 {
[%emt 0:00:05]} Kf7 {[%emt 0:00:03]} 34. Rae1 {[%emt 0:00:01]} Bxa5 {[%emt 0:
00:01]} 35. Ra1 {[%emt 0:00:01]} Bb6 {[%emt 0:00:02]} 36. Nc4 {[%emt 0:00:01]}
Kf6 {[%emt 0:00:05]} 37. Rae1 {[%emt 0:00:03]} Bc7 {[%emt 0:00:02]} 38. Ra1 {
[%emt 0:00:01]} a6 {[%emt 0:00:01]} 39. Rae1 {[%emt 0:00:03]} g5 {[%emt 0:00:
01]} 40. hxg5+ {[%emt 0:00:02]} hxg5 {[%emt 0:00:01]} 41. Rh1 {[%emt 0:00:01]}
Kg6 {[%emt 0:00:07]} 42. g4 {[%emt 0:00:00]} fxg4 {[%emt 0:00:04]} 43. fxg4 {
[%emt 0:00:01]} Rf6 {[%emt 0:00:05]} 44. Nd2 {[%emt 0:00:06]} Rf4 {[%emt 0:00:
02]} 45. Re4 {[%emt 0:00:03]} Ref8 {[%emt 0:00:04]} 46. Rxf4 {[%emt 0:00:03]}
Rxf4 {[%emt 0:00:09]} 47. Kg3 {[%emt 0:00:01]} e4 {[%emt 0:00:02]} 48. Nxe4 {
[%emt 0:00:01]} Rxe4+ {[%emt 0:00:01]} 49. Kf3 {[%emt 0:00:02]} Rf4+ {[%emt 0:
00:03]} 50. Ke2 {[%emt 0:00:03]} Rxg4 {[%emt 0:00:01]} 51. Ra1 {[%emt 0:00:01]}
a5 {[%emt 0:00:02]} 52. Kf3 {[%emt 0:00:02]} Rf4+ {[%emt 0:00:01]} 53. Kg2 {
[%emt 0:00:00]} g4 {[%emt 0:00:03]} 54. Re1 {[%emt 0:00:01]} Kf5 {[%emt 0:00:
03]} 55. Re7 {[%emt 0:00:00]} Be5 {[%emt 0:00:04]} 56. Ra7 {[%emt 0:00:07]} g3
{[%emt 0:00:05]} 57. Rxa5 {[%emt 0:00:01]} Rf2+ {[%emt 0:00:02]} 58. Kg1 {
[%emt 0:00:01]} Rxc2 {[%emt 0:00:01]} 59. Ra8 {[%emt 0:00:03]} Bf4 {[%emt 0:00:
03]} 60. Rf8+ {[%emt 0:00:04]} Kg4 {[%emt 0:00:01]} 0-1

[Event "FIDE Women World Blitz 2021"]
[Site "Warsaw"]
[Date "2021.12.30"]
[Round "16.4"]
[White "Socko, Monika"]
[Black "Kosteniuk, Alexandra"]
[Result "0-1"]
[ECO "D38"]
[WhiteElo "2393"]
[BlackElo "2518"]
[Annotator "ChessBase"]
[PlyCount "70"]
[EventDate "2021.12.29"]
[EventType "swiss"]
[EventCountry "POL"]
[Tiebreak "Cut1 Buchholz"]
[SourceTitle "playchess.com"]
[Source "ChessBase"]
[SourceQuality "1"]
[TimeControl "180+2"]

1. d4 {[%emt 0:00:01]} Nf6 {[%emt 0:00:01]} 2. c4 {[%emt 0:00:01]} e6 {[%emt 0:
00:00]} 3. Nf3 {[%emt 0:00:03]} d5 {[%emt 0:00:01]} 4. Nc3 {[%emt 0:00:02]} Bb4
{[%emt 0:00:01]} 5. Qb3 {[%emt 0:00:01]} c5 {[%emt 0:00:01]} 6. dxc5 {[%emt 0:
00:04]} Nc6 {[%emt 0:00:01]} 7. a3 {[%emt 0:00:08]} Bxc5 {[%emt 0:00:08]} 8.
Bg5 {[%emt 0:00:17]} d4 {[%emt 0:00:06]} 9. Na4 {[%emt 0:00:09]} Be7 {[%emt 0:
00:07]} 10. Rd1 {[%emt 0:00:08]} O-O {[%emt 0:00:11]} 11. e3 {[%emt 0:00:02]}
Qa5+ {[%emt 0:00:01]} 12. Ke2 {[%emt 0:00:11]} e5 {[%emt 0:00:28]} 13. Bxf6 {
[%emt 0:00:13]} Bxf6 {[%emt 0:00:02]} 14. e4 {[%emt 0:00:23]} Be6 {[%emt 0:00:
08]} 15. Rd3 {[%emt 0:00:14]} Rac8 {[%emt 0:00:13]} 16. Nd2 {[%emt 0:00:01]} b6
{[%emt 0:00:15]} 17. Qd1 {[%emt 0:00:20]} Ne7 {[%emt 0:00:07]} 18. b4 {[%emt 0:
00:06]} Qa6 {[%emt 0:00:00]} 19. Nb2 {[%emt 0:00:07]} Ng6 {[%emt 0:00:05]} 20.
g3 {[%emt 0:00:00]} Bg5 {[%emt 0:00:03]} 21. Kf3 {[%emt 0:00:08]} f5 {[%emt 0:
00:01]} 22. Kg2 {[%emt 0:00:02]} Bxd2 {[%emt 0:00:03]} 23. Rxd2 {[%emt 0:00:02]
} fxe4 {[%emt 0:00:01]} 24. c5 {[%emt 0:00:00]} Qb7 {[%emt 0:00:00]} 25. Rc2 {
[%emt 0:00:09]} d3 {[%emt 0:00:09]} 26. c6 {[%emt 0:00:16]} Rxc6 {[%emt 0:00:
01]} 27. Rxc6 {[%emt 0:00:01]} Qxc6 {[%emt 0:00:01]} 28. Kg1 {[%emt 0:00:06]}
Qc2 {[%emt 0:00:04]} 29. f3 {[%emt 0:00:21]} Qxb2 {[%emt 0:00:05]} 30. h4 {
[%emt 0:00:04]} Rxf3 {[%emt 0:00:04]} 31. Rh2 {[%emt 0:00:00]} Rxg3+ {[%emt 0:
00:11]} 32. Kh1 {[%emt 0:00:01]} Qd4 {[%emt 0:00:01]} 33. Bg2 {[%emt 0:00:03]}
d2 {[%emt 0:00:06]} 34. h5 {[%emt 0:00:01]} Nf4 {[%emt 0:00:01]} 35. Bf1 {
[%emt 0:00:03]} Qg1# {[%emt 0:00:01]} 0-1

[Event "FIDE Women World Blitz 2021"]
[Site "Warsaw"]
[Date "2021.12.30"]
[Round "16.4"]
[White "Kucharska, Honorata"]
[Black "Goraj, Barbara"]
[Result "1/2-1/2"]
[ECO "E62"]
[WhiteElo "2168"]
[BlackElo "1902"]
[Annotator "NA"]
[PlyCount "179"]
[EventDate "2021.12.29"]
[EventType "swiss"]
[EventCountry "POL"]
[Tiebreak "Cut1 Buchholz"]
[SourceTitle "playchess.com"]
[Source "ChessBase"]
[SourceQuality "1"]
[TimeControl "180+2"]

1. c4 {[%emt 0:00:01]} Nf6 {[%emt 0:00:02]} 2. Nc3 {[%emt 0:00:01]} g6 {
[%emt 0:00:01]} 3. Nf3 {[%emt 0:00:03]} Bg7 {[%emt 0:00:01]} 4. d4 {[%emt 0:00:
01]} d6 {[%emt 0:00:01]} 5. g3 {[%emt 0:00:02]} O-O {[%emt 0:00:02]} 6. Bg2 {
[%emt 0:00:01]} Nc6 {[%emt 0:00:01]} 7. O-O {[%emt 0:00:02]} Bg4 {[%emt 0:00:
01]} 8. d5 {[%emt 0:00:01]} Na5 {[%emt 0:00:01]} 9. Nd2 {[%emt 0:00:01]} c5 {
[%emt 0:00:01]} 10. Qc2 {[%emt 0:00:05]} a6 {[%emt 0:00:02]} 11. b3 {[%emt 0:
00:01]} Rb8 {[%emt 0:00:02]} 12. Bb2 {[%emt 0:00:02]} b5 {[%emt 0:00:01]} 13.
h3 {[%emt 0:00:01]} Bd7 {[%emt 0:00:04]} 14. Rab1 {[%emt 0:00:08]} Re8 {
[%emt 0:00:37]} 15. e4 {[%emt 0:00:09]} e5 {[%emt 0:00:07]} 16. dxe6 {[%emt 0:
00:07]} Bxe6 {[%emt 0:00:02]} 17. cxb5 {[%emt 0:00:17]} axb5 {[%emt 0:00:04]}
18. Rbd1 {[%emt 0:00:26]} Nc6 {[%emt 0:00:11]} 19. Nf3 {[%emt 0:00:03]} Nb4 {
[%emt 0:00:41]} 20. Qd2 {[%emt 0:00:08]} Qc7 {[%emt 0:00:26]} 21. Ng5 {[%emt 0:
00:24]} Red8 {[%emt 0:00:12]} 22. a3 {[%emt 0:00:14]} Nc6 {[%emt 0:00:06]} 23.
Nd5 {[%emt 0:00:07]} Bxd5 {[%emt 0:00:05]} 24. exd5 {[%emt 0:00:01]} Na5 {
[%emt 0:00:14]} 25. Qc2 {[%emt 0:00:09]} h6 {[%emt 0:00:27]} 26. Ne4 {[%emt 0:
00:07]} Nxe4 {[%emt 0:00:01]} 27. Bxe4 {[%emt 0:00:01]} Bxb2 {[%emt 0:00:07]}
28. Qxb2 {[%emt 0:00:01]} c4 {[%emt 0:00:07]} 29. b4 {[%emt 0:00:02]} Nb7 {
[%emt 0:00:07]} 30. Qf6 {[%emt 0:00:02]} Re8 {[%emt 0:00:02]} 31. Bc2 {[%emt 0:
00:09]} Qe7 {[%emt 0:00:02]} 32. Qf4 {[%emt 0:00:05]} Qg5 {[%emt 0:00:02]} 33.
Qf3 {[%emt 0:00:06]} Kg7 {[%emt 0:00:01]} 34. h4 {[%emt 0:00:09]} Qf6 {[%emt 0:
00:01]} 35. Qg4 {[%emt 0:00:04]} Ra8 {[%emt 0:00:01]} 36. Qd7 {[%emt 0:00:05]}
Re7 {[%emt 0:00:06]} 37. Qxb5 {[%emt 0:00:01]} Rxa3 {[%emt 0:00:05]} 38. Qxc4 {
[%emt 0:00:04]} Rc3 {[%emt 0:00:00]} 39. Qa2 {[%emt 0:00:02]} Rec7 {[%emt 0:00:
02]} 40. Be4 {[%emt 0:00:02]} Qe5 {[%emt 0:00:01]} 41. Bg2 {[%emt 0:00:02]} Rc2
{[%emt 0:00:03]} 42. Qa6 {[%emt 0:00:04]} Rb2 {[%emt 0:00:02]} 43. Qb6 {
[%emt 0:00:05]} Qc3 {[%emt 0:00:01]} 44. Qd4+ {[%emt 0:00:04]} Qxd4 {[%emt 0:
00:02]} 45. Rxd4 {[%emt 0:00:01]} Rcc2 {[%emt 0:00:02]} 46. Rf4 {[%emt 0:00:03]
} Nd8 {[%emt 0:00:03]} 47. Re1 {[%emt 0:00:01]} Kf8 {[%emt 0:00:02]} 48. Ra1 {
[%emt 0:00:02]} Ra2 {[%emt 0:00:02]} 49. Rxa2 {[%emt 0:00:06]} Rxa2 {[%emt 0:
00:00]} 50. Rc4 {[%emt 0:00:01]} Rb2 {[%emt 0:00:03]} 51. Be4 {[%emt 0:00:04]}
f5 {[%emt 0:00:01]} 52. Bf3 {[%emt 0:00:02]} Nf7 {[%emt 0:00:02]} 53. Kg2 {
[%emt 0:00:02]} Ne5 {[%emt 0:00:02]} 54. Rc8+ {[%emt 0:00:01]} Ke7 {[%emt 0:00:
01]} 55. Rc7+ {[%emt 0:00:01]} Kf6 {[%emt 0:00:01]} 56. Rb7 {[%emt 0:00:02]}
Nd3 {[%emt 0:00:01]} 57. Kg1 {[%emt 0:00:07]} Nxf2 {[%emt 0:00:03]} 58. b5 {
[%emt 0:00:12]} Nh3+ {[%emt 0:00:01]} 59. Kh1 {[%emt 0:00:01]} Nf2+ {[%emt 0:
00:01]} 60. Kg1 {[%emt 0:00:01]} Nh3+ {[%emt 0:00:06]} 61. Kh1 {[%emt 0:00:01]}
Nf2+ {[%emt 0:00:01]} 62. Kg1 {[%emt 0:00:01]} Nd3 {[%emt 0:00:03]} 63. Rb8 {
[%emt 0:00:13]} Ne5 {[%emt 0:00:01]} 64. Bg2 {[%emt 0:00:02]} Nc4 {[%emt 0:00:
01]} 65. Rc8 {[%emt 0:00:03]} Rb4 {[%emt 0:00:04]} 66. Rc6 {[%emt 0:00:03]} Ke5
{[%emt 0:00:00]} 67. Rc8 {[%emt 0:00:03]} Nb6 {[%emt 0:00:03]} 68. Re8+ {
[%emt 0:00:01]} Kd4 {[%emt 0:00:01]} 69. Re6 {[%emt 0:00:01]} Rxb5 {[%emt 0:00:
04]} 70. Rxd6 {[%emt 0:00:01]} Nxd5 {[%emt 0:00:03]} 71. Bxd5 {[%emt 0:00:02]}
Rxd5 {[%emt 0:00:01]} 72. Rxg6 {[%emt 0:00:02]} Ke3 {[%emt 0:00:01]} 73. Kg2 {
[%emt 0:00:00]} h5 {[%emt 0:00:03]} 74. Re6+ {[%emt 0:00:02]} Kd4 {[%emt 0:00:
02]} 75. Rh6 {[%emt 0:00:02]} Ke5 {[%emt 0:00:02]} 76. Rxh5 {[%emt 0:00:01]}
Rd2+ {[%emt 0:00:02]} 77. Kh3 {[%emt 0:00:01]} Kf6 {[%emt 0:00:02]} 78. Rh6+ {
[%emt 0:00:02]} Ke5 {[%emt 0:00:02]} 79. Ra6 {[%emt 0:00:01]} Rd3 {[%emt 0:00:
02]} 80. Ra4 {[%emt 0:00:01]} Kf6 {[%emt 0:00:03]} 81. h5 {[%emt 0:00:03]} Kg5
{[%emt 0:00:02]} 82. Rf4 {[%emt 0:00:01]} Kxh5 {[%emt 0:00:01]} 83. Rxf5+ {
[%emt 0:00:01]} Kg6 {[%emt 0:00:01]} 84. Ra5 {[%emt 0:00:01]} Rd6 {[%emt 0:00:
01]} 85. Kh4 {[%emt 0:00:02]} Rc6 {[%emt 0:00:01]} 86. g4 {[%emt 0:00:01]} Rb6
{[%emt 0:00:01]} 87. Rc5 {[%emt 0:00:02]} Ra6 {[%emt 0:00:00]} 88. Rd5 {
[%emt 0:00:01]} Rb6 {[%emt 0:00:01]} 89. Ra5 {[%emt 0:00:01]} Rc6 {[%emt 0:00:
00]} 90. Rb5 {[%emt 0:00:02]} 1/2-1/2